[Event "Russia-China Match 2019"]
[Site "Moscow"]
[Date "2019.11.29"]
[Round "4.4"]
[White "Xu, Yinglun"]
[Black "Sarana, Alexey"]
[Result "1-0"]
[ECO "D38"]
[WhiteElo "2554"]
[BlackElo "2664"]
[Annotator "RC"]
[PlyCount "93"]
[EventDate "2019.11.26"]
[EventType "schev"]
[EventCountry "RUS"]
[SourceTitle "playchess.com"]
[Source "ChessBase"]
[SourceQuality "1"]
[TimeControl "40/5400+30:1800+30"]

1. d4 {[%emt 0:00:00]} Nf6 {[%emt 0:00:00]} 2. c4 {[%emt 0:00:00]} e6 {[%emt 0:00:00]} 3. Nf3 {[%emt 0:00:00]} d5 {[%emt 0:00:00]} 4. Nc3 {[%emt 0:00:00]} Bb4 {[%emt 0:00:00]} 5. Qb3 {[%emt 0:00:01]} c5 {[%emt 0:00:12]} 6. dxc5 {[%emt 0:00:18]} Nc6 {[%emt 0:00:06]} 7. Bg5 {[%emt 0:00:35]} Qa5 {[%emt 0:00:06]} 8. Bxf6 {[%emt 0:00:07]} dxc4 {[%emt 0:00:04]} 9. Qxc4 {[%emt 0:00:04]} gxf6 {[%emt 0:00:07]} 10. Rc1 {[%emt 0:00:19]} Qxc5 {[%emt 0:00:07]} 11. Qh4 {[%emt 0:00:55]} Ke7 {[%emt 0:00:19]} 12. g3 {[%emt 0:00:45]} Bxc3+ {[%emt 0:00:54]} 13. Rxc3 {[%emt 0:00:27]} Qb6 {[%emt 0:15:04]} 14. Nd2 {[%emt 0:00:07]} Qxb2 {[%emt 0:11:38]} 15. Ne4 {[%emt 0:00:07]} Qb1+ {[%emt 0:01:08]} 16. Kd2 {[%emt 0:00:16]} Rd8+ {[%emt 0:00:07]} 17. Ke3 {[%emt 0:00:11]} Qb6+ {[%emt 0:00:16]} 18. Kf3 {[%emt 0:00:06]} Nd4+ {[%emt 0:14:18]} 19. Kg2 {[%emt 0:00:06]} e5 {[%emt 0:00:06]} 20. Rc5 {[%emt 0:00:05]} Qe6 {[%emt 0:02:31]} 21. e3 {[%emt 0:09:39]} Nf5 {[%emt 0:01:52]} 22. Qxh7 {[%emt 0:05:05]} b6 {[%emt 0:18:14]} 23. Bc4 {[%emt 0:20:08]} bxc5 {[%emt 0:01:23]} 24. Bxe6 {[%emt 0:00:08]} Bxe6 {[%emt 0:00:04]} 25. Rb1 {[%emt 0:00:31]} Nd6 {[%emt 0:01:05]} 26. Nxd6 {[%emt 0:16:13]} Rxd6 {[%emt 0:02:28]} 27. Rb7+ {[%emt 0:06:17]} Rd7 {[%emt 0:00:46]} 28. Rxd7+ {[%emt 0:00:56]} Bxd7 {[%emt 0:00:03]} 29. Qd3 {[%emt 0:01:35]} Rc8 {[%emt 0:00:25]} 30. f4 {[%emt 0:00:53]} c4 {[%emt 0:03:57]} 31. Qc3 {[%emt 0:02:19]} Kf8 {[%emt 0:02:23]} 32. Kf2 {[%emt 0:01:35]} Kg8 {[%emt 0:01:46]} 33. e4 {[%emt 0:01:31]} exf4 {[%emt 0:05:17]} 34. gxf4 {[%emt 0:00:20]} f5 {[%emt 0:00:12]} 35. exf5 {[%emt 0:09:56]} Bxf5 {[%emt 0:00:27]} 36. h4 {[%emt 0:00:29]} Bd3 {[%emt 0:08:39]} 37. h5 {[%emt 0:01:36]} Rc6 {[%emt 0:01:40]} 38. a4 {[%emt 0:05:44]} a6 {[%emt 0:04:32]} 39. Kg3 {[%emt 0:02:02]} Be2 {[%emt 0:01:32]} 40. Qe5 {[%emt 0:00:00]} Re6 {[%emt 0:00:00]} 41. Qg5+ {[%emt 0:07:04]} Kh7 {[%emt 0:00:27]} 42. f5 {[%emt 0:01:09]} Re4 {[%emt 0:01:43]} 43. Kf2 {[%emt 0:00:48]} Bd1 {[%emt 0:05:11]} 44. f6 {[%emt 0:01:12]} Rg4 {[%emt 0:00:08]} 45. Qd5 {[%emt 0:00:13]} Rf4+ {[%emt 0:00:55]} 46. Ke1 {[%emt 0:01:41]} Rxf6 {[%emt 0:01:24]} 47. Kxd1 {[%emt 0:00:06]} 1-0

[Event "Russia-China Match 2019"]
[Site "Moscow"]
[Date "2019.11.30"]
[Round "5.5"]
[White "Wen, Yang"]
[Black "Esipenko, Andrey"]
[Result "1/2-1/2"]
[ECO "C54"]
[WhiteElo "2586"]
[BlackElo "2636"]
[Annotator "ChessBase"]
[PlyCount "78"]
[EventDate "2019.11.26"]
[EventType "schev"]
[EventCountry "RUS"]
[SourceTitle "playchess.com"]
[Source "ChessBase"]
[SourceQuality "1"]
[TimeControl "40/5400+30:1800+30"]

1. e4 {[%emt 0:00:00]} e5 {[%emt 0:00:00]} 2. Nf3 {[%emt 0:00:00]} Nc6 {[%emt 0:00:00]} 3. Bc4 {[%emt 0:00:26]} Bc5 {[%emt 0:00:00]} 4. c3 {[%emt 0:00:57]} Nf6 {[%emt 0:00:09]} 5. d4 {[%emt 0:00:12]} exd4 {[%emt 0:00:06]} 6. e5 {[%emt 0:00:03]} d5 {[%emt 0:00:08]} 7. Bb5 {[%emt 0:00:03]} Ne4 {[%emt 0:00:10]} 8. cxd4 {[%emt 0:00:05]} Bb6 {[%emt 0:00:13]} 9. Nc3 {[%emt 0:00:07]} Bg4 {[%emt 0:00:41]} 10. Be3 {[%emt 0:00:39]} O-O {[%emt 0:00:16]} 11. h3 {[%emt 0:00:19]} Bh5 {[%emt 0:00:06]} 12. Qc2 {[%emt 0:00:09]} Bg6 {[%emt 0:00:40]} 13. Qb3 {[%emt 0:00:25]} Ne7 {[%emt 0:00:08]} 14. O-O {[%emt 0:01:05]} c6 {[%emt 0:00:08]} 15. Bd3 {[%emt 0:00:07]} Nf5 {[%emt 0:00:14]} 16. Qc2 {[%emt 0:09:33]} Nxe3 {[%emt 0:00:47]} 17. fxe3 {[%emt 0:00:06]} Ng3 {[%emt 0:00:04]} 18. Bxg6 {[%emt 0:12:04]} hxg6 {[%emt 0:00:54]} 19. Rfe1 {[%emt 0:00:40]} Ba5 {[%emt 0:03:52]} 20. Rab1 {[%emt 0:02:50]} Qe7 {[%emt 0:02:23]} 21. a3 {[%emt 0:16:07]} Bxc3 {[%emt 0:07:21]} 22. Qxc3 {[%emt 0:13:44]} Ne4 {[%emt 0:02:41]} 23. Qd3 {[%emt 0:00:19]} c5 {[%emt 0:18:23]} 24. dxc5 {[%emt 0:05:19]} Nxc5 {[%emt 0:00:31]} 25. Qxd5 {[%emt 0:03:00]} Rad8 {[%emt 0:00:09]} 26. Qc4 {[%emt 0:00:10]} Nd3 {[%emt 0:00:05]} 27. Re2 {[%emt 0:00:30]} Nxe5 {[%emt 0:00:05]} 28. Nxe5 {[%emt 0:00:12]} Qxe5 {[%emt 0:00:05]} 29. Rf1 {[%emt 0:01:34]} Rd7 {[%emt 0:01:14]} 30. Qb3 {[%emt 0:00:42]} Re8 {[%emt 0:03:09]} 31. Rd1 {[%emt 0:13:07]} Red8 {[%emt 0:07:53]} 32. Rf1 {[%emt 0:00:37]} Rc8 {[%emt 0:02:14]} 33. Ref2 {[%emt 0:00:51]} Rcc7 {[%emt 0:00:20]} 34. Rf4 {[%emt 0:01:05]} a6 {[%emt 0:01:31]} 35. Kh1 {[%emt 0:02:25]} Qd5 {[%emt 0:03:37]} 36. Qa4 {[%emt 0:00:15]} Qc6 {[%emt 0:02:27]} 37. Qb3 {[%emt 0:02:20]} Qd5 {[%emt 0:14:45]} 38. Qa4 {[%emt 0:00:14]} Qc6 {[%emt 0:01:27]} 39. Qb3 {[%emt 0:00:08]} Qd5 {[%emt 0:00:41]} 1/2-1/2